Cogmind - Beta 15 @@@ ROGUE MODE // 2025.08.12 @ 06:18:35 Player: Peregrine Result: Self-destructed Performance ------------- Evolutions (8) 4000 Regions Visited (20) 4000 Robots Destroyed (106) 530 Value Destroyed (4452) 4452 Prototype IDs (30) 600 Alien Tech Used (1) 200 Bonus (9742) 9742 TOTAL SCORE: 23524 Bonus ------- Triggered Max Security 1000 High Alert Combat Kills 591 Follower Combat Kills 1435 Entered DSFs 1000 Aligned with FarCom 300 Met R17 at Cetus 500 Used Core Reset Matrix 3000 Met R17 at Research 2000 Friendly Fire -84 Cogmind --------- Core Integrity 909/1450 Matter 262/300 Energy 100/100 System Corruption 11% Temperature Cool (9) Movement Core (50) Location -2/Research Parts ------- > --- POWER (2) -------- (None) > --- PROPULSION (6) --- (None) > --- UTILITY (11) ----- Advanced Heat Sink > --- WEAPON (4) ------- (None) > --- INVENTORY (5) ---- Enhanced Hardcell Cannon Peak State ------------ > --- POWER ------------ Quantum Reactor Quantum Reactor > --- PROPULSION ------- Improved Heavy Treads Improved Heavy Treads Centrium Heavy Treads > --- UTILITY ---------- Advanced Heat Sink Large Storage Unit Large Matter Pod Experimental Sensor Array Centrium Medium Armor Plating Centrium Medium Armor Plating Centrium Medium Armor Plating Centrium Medium Armor Plating Advanced Point Defense System > --- WEAPON ----------- Advanced Variable Charge Gun Matter Neutralizer Heavy Neutron Cannon KE Penetrator > --- INVENTORY -------- Light Antimatter Reactor Light Antimatter Reactor Quantum Reactor Improved Heavy Treads Impulse Thruster Improved Hacking Suite Improved System Shield Advanced Plasma Cannon Molecular Deconstructor Powered Hammer [Rating: 161] Favorites ----------- Power Light Antimatter Reactor Engine Ion Engine Power Core Light Nuclear Core Reactor Light Antimatter Reactor Propulsion Improved Heavy Treads Treads Improved Heavy Treads Leg Aluminum Leg Wheel Wheel Utility Advanced Terrain Scan Processor Device Advanced Heat Sink Storage Large Storage Unit Processor Advanced Terrain Scan Processor Protection Centrium Medium Armor Plating Weapon KE Penetrator Energy Gun Small Laser Energy Cannon Heavy Neutron Cannon Ballistic Gun KE Penetrator Ballistic Cannon Advanced Assault Cannon Launcher Grenade Launcher Special Weapon Molecular Deconstructor Impact Weapon Powered Hammer Build | -11 -10 -10 -10 -9 -8 -7 -7 -6 -6 -6 -5 -5 -4 -4 -4 -4 -4 -3 -3 -2 ------- Run | Yrd Mat Min Exi Min Mat Fac DSF Fac Low Low Fac DSF Fac Ext Cet Arc Hub Res Qua Res Slots Evolved 16 | . . . . . 4 2 . 2 . . 2 . 2 . . . . 2 . 2 Power 1 | . . . . . . 1 . . . . . . . . . . . . . . Propulsion 4 | . . . . . 1 . . . . . 1 . 2 . . . . . . . Utility 9 | . . . . . 3 1 . 2 . . 1 . . . . . . . . 2 Weapon 2 | . . . . . . . . . . . . . . . . . . 2 . . Parts Attached 129 | . 14 1 3 5 24 1 3 10 5 . . 12 2 12 5 . . 15 3 14 Power 19 | . 1 . 1 . 2 . . 2 . . . 1 . 6 1 . . 1 1 3 Engine 3 | . 1 . 1 . 1 . . . . . . . . . . . . . . . Core 3 | . . . . . 1 . . . . . . . . 2 . . . . . . Reactor 13 | . . . . . . . . 2 . . . 1 . 4 1 . . 1 1 3 Propulsion 30 | . 3 . 2 2 4 . 3 2 . . . 7 1 2 1 . . . 1 2 Treads 12 | . . . . . 4 . . . . . . 2 1 2 1 . . . 1 1 Leg 14 | . 3 . 2 . . . 3 . . . . 5 . . . . . . . 1 Wheel 4 | . . . . 2 . . . 2 . . . . . . . . . . . . Hover . | . . . . . . . . . . . . . . . . . . . . . Flight . | . . . . . . . . . . . . . . . . . . . . . Utility 44 | . 3 1 . 3 9 1 . 4 3 . . . . 4 2 . . 9 . 5 Device 20 | . 1 1 . 2 . . . 2 1 . . . . 4 . . . 6 . 3 Storage 7 | . 2 . . . 2 . . 1 . . . . . . . . . 1 . 1 Processor 5 | . . . . . 2 1 . 1 1 . . . . . . . . . . . Hackware . | . . . . . . . . . . . . . . . . . . . . . Protection 12 | . . . . 1 5 . . . 1 . . . . . 2 . . 2 . 1 Artifact . | . . . . . . . . . . . . . . . . . . . . . Weapon 36 | . 7 . . . 9 . . 2 2 . . 4 1 . 1 . . 5 1 4 Energy Gun 5 | . 2 . . . 1 . . . . . . . . . . . . 1 . 1 Energy Cannon 6 | . . . . . 2 . . . . . . . 1 . . . . 1 1 1 Ballistic Gun 11 | . 3 . . . 2 . . . . . . 4 . . 1 . . . . 1 Ballistic Cannon 5 | . . . . . . . . 2 1 . . . . . . . . 1 . 1 Launcher 5 | . 1 . . . 2 . . . . . . . . . . . . 2 . . Special Weapon 3 | . 1 . . . 1 . . . 1 . . . . . . . . . . . Impact Weapon 1 | . . . . . 1 . . . . . . . . . . . . . . . Slashing Weapon . | . . . . . . . . . . . . . . . . . . . . . Piercing Weapon . | . . . . . . . . . . . . . . . . . . . . . Special Melee Weapon . | . . . . . . . . . . . . . . . . . . . . . Unidentified Prototypes 8 | . . . . 1 1 . . . 1 . . . 1 . 2 . . 1 1 . Parts Lost 56 | . 2 . . 2 1 . 3 1 . . . 3 . 5 . . 1 3 19 16 Power 9 | . . . . . 1 . 1 . . . . . . 1 . . . . 3 3 Propulsion 16 | . 2 . . 2 . . 2 . . . . 2 . 1 . . . . 5 2 Utility 20 | . . . . . . . . 1 . . . 1 . 3 . . 1 2 8 4 Weapon 11 | . . . . . . . . . . . . . . . . . . 1 3 7 Highest Loss Streak 19 | . 2 . . 1 1 . 3 1 . . . 3 . 1 . . 1 3 19 10 To Critical Strikes 2 | . . . . . . . . . . . . 1 . 1 . . . . . . Average Backups 11 | 6 6 8 9 8 13 13 13 14 13 14 14 11 11 12 11 11 13 12 11 2 Power . | 1 1 1 . . . . . . 1 1 1 . . . 1 2 3 3 1 . Propulsion 2 | 4 2 2 3 2 2 2 2 3 4 4 4 1 1 1 1 1 1 1 1 . Utility 3 | . 2 4 4 3 6 5 5 4 2 4 4 3 3 2 . 1 3 3 2 . Weapon 4 | 1 1 1 1 1 4 5 5 5 4 4 4 5 6 7 8 6 6 3 5 2 Tool/Special . | . . . . . . . . . . . . . . . . . . . . . Unused Backups 26 | . 6 . 1 . 1 . . . 2 . . 4 . 2 3 1 . 5 1 . Power 1 | . 1 . . . . . . . . . . . . . . . . . . . Propulsion 11 | . 3 . . . . . . . 1 . . 3 . . 2 . . 2 . . Utility 10 | . 1 . 1 . 1 . . . 1 . . 1 . 2 . 1 . 2 . . Weapon 4 | . 1 . . . . . . . . . . . . . 1 . . 1 1 . Tool/Special . | . . . . . . . . . . . . . . . . . . . . . Average Slot Usage (%) 84 | . 91 100 100 97 95 92 82 82 99 100 88 80 71 77 80 78 76 82 75 20 Engine 4 | . 14 14 14 14 6 . . . . . . . . . . . . . . . Reactor 5 | . . . . . . . . 7 13 13 11 11 10 8 10 5 5 8 7 3 Treads 9 | . . . . . 25 23 6 . . . . 6 15 15 15 15 15 14 13 . Leg 7 | . 27 28 28 22 . . 11 6 . . . 5 . . . . . . . 3 Wheel 2 | . . . . 2 . . . 12 20 20 17 1 . . . . . . . . Device 11 | . 8 14 14 7 8 7 7 7 13 13 11 11 10 19 16 15 13 14 10 2 Storage 10 | . 14 14 14 14 9 7 7 6 13 13 11 11 10 10 10 10 10 12 13 . Processor 9 | . . . . . 15 23 23 22 25 20 17 17 15 10 10 10 10 1 . . Protection 5 | . . . . 6 9 7 7 3 . 6 5 1 . . 7 10 10 13 13 . Energy Gun 3 | . 14 14 14 7 . . . . . . . . . . . . . 3 3 . Energy Cannon 1 | . . . . . 2 . . 3 . . . . 2 . . . . 5 3 5 Ballistic Gun 8 | . 9 14 14 14 13 . 5 6 . . . 8 2 9 7 10 10 5 3 . Ballistic Cannon 1 | . . . . . . . . . 12 13 11 2 . . . . . . . . Peak Build Rating 161 | 6 7 8 8 17 36 36 42 56 66 56 56 87 102 118 131 131 126 161 159 66 Average Rating 68 | 6 6 7 7 12 29 36 38 46 56 56 56 77 94 111 121 125 124 154 142 39 On Entrance 57 | 6 6 7 8 8 9 33 36 42 56 56 56 56 84 90 113 131 126 121 159 4 Naked Turns 33 | . . . . . . . . . . . . . . . . . . . 1 32 Heaviest Build 149 | 13 20 18 18 20 50 38 38 65 69 69 69 69 65 68 83 83 71 149 144 63 Greatest Support 230 | 20 20 20 20 26 60 60 60 40 30 30 30 150 225 225 230 230 230 230 230 39 Greatest Overweight (x) 5 | . 5 . . 1 . . 1 4 2 2 2 2 . . . . . . 1 2 Average Overweight (x) . | . . . . . . . . 1 2 2 2 . . . . . . . . . Largest Inventory Capacity 25 | 8 10 10 10 10 25 15 15 15 15 15 15 15 15 15 15 15 15 15 15 5 Average Capacity 13 | 8 9 10 10 10 14 15 15 15 15 15 15 15 15 15 15 15 15 15 14 5 Most Carried 16 | 6 10 10 10 10 16 13 15 15 15 15 15 15 15 15 15 15 15 15 15 5 Average Carried 12 | 6 6 8 9 8 13 13 13 14 14 15 15 14 13 13 13 13 15 14 14 2 Final Capacity 15 | 8 10 10 10 10 15 15 15 15 15 15 15 15 15 15 15 15 15 15 5 5 Final Carried 15 | 6 8 10 8 7 14 13 13 15 15 15 15 15 15 13 12 15 15 15 5 1 Class Distribution -------------------- 23% | Scavenger-Skirmisher 19% | Mutant 13% | Scavenger-Tank 12% | Scavenger-Mutant 12% | Skirmisher 8% | Commander-Skirmisher 4% | Assassin Dominant Class ---------------- Mutant | -10/Materials Scavenger-Mutant | -10/Mines Mutant | -10/Exiles Skirmisher | -9/Mines Scavenger-Skirmisher | -8/Materials Scavenger-Skirmisher | -7/Factory Assassin | -7/DSF Mutant | -6/Factory Scavenger-Mutant | -6/Lower Caves Scavenger-Mutant | -6/Lower Caves Scavenger-Skirmisher | -5/Factory Skirmisher | -5/DSF Assassin | -4/Factory Commander-Skirmisher | -4/Extension Commander-Skirmisher | -4/Cetus Scavenger-Skirmisher | -4/Archives Scavenger-Skirmisher | -4/Hub_04(d) Scavenger-Tank | -3/Research Scavenger-Tank | -3/Quarantine Mutant | -2/Research Resources | -11 -10 -10 -10 -9 -8 -7 -7 -6 -6 -6 -5 -5 -4 -4 -4 -4 -4 -3 -3 -2 ----------- Run | Yrd Mat Min Exi Min Mat Fac DSF Fac Low Low Fac DSF Fac Ext Cet Arc Hub Res Qua Res Matter Collected 4475 | 200 297 72 30 189 515 . 47 437 220 30 . 353 . 972 127 245 . 405 94 242 Remotely . | . . . . . . . . . . . . . . . . . . . . . Salvage Created 5153 | . 317 62 . 91 688 . 76 633 183 . . 491 . 1073 . 395 . 579 . 565 Parts 236 | . 13 7 . 8 48 . . 25 8 . . 14 . 41 . 20 . 27 . 25 Haulers Intercepted 7 | . 1 . . . 1 . . 1 . . . 1 . . . . . 2 . 1 Recyclers Shooed 1 | . . . . . . . . 1 . . . . . . . . . . . . Parts Field Recycled . | . . . . . . . . . . . . . . . . . . . . . Retrieved Matter . | . . . . . . . . . . . . . . . . . . . . . Parts Self-Destructed 9 | . . . . . . . . . 9 . . . . . . . . . . . Prevented . | . . . . . . . . . . . . . . . . . . . . . Kills | -11 -10 -10 -10 -9 -8 -7 -7 -6 -6 -6 -5 -5 -4 -4 -4 -4 -4 -3 -3 -2 ------- Run | Yrd Mat Min Exi Min Mat Fac DSF Fac Low Low Fac DSF Fac Ext Cet Arc Hub Res Qua Res Combat Hostiles Destroyed 71 | . 3 1 . 5 16 . 1 2 2 . . 7 . 10 . 3 . 10 . 11 Guns 35 | . 3 1 . 2 7 . 1 1 . . . 6 . 10 . 3 . 1 . . Cannons 18 | . . . . . 6 . . 1 2 . . 1 . . . . . 2 . 6 AOE 17 | . . . . 3 3 . . . . . . . . . . . . 6 . 5 Classes Destroyed 18 | . 5 2 . 2 1 . 1 1 1 . . 3 . . . 1 . . . 1 Worker 8 | . 2 . . . 2 . . 2 . . . . . . . . . 2 . . Builder 3 | . . 1 . . 1 . . 1 . . . . . . . . . . . . Tunneler 3 | . . 1 . 1 . . . 1 . . . . . . . . . . . . Hauler 7 | . 1 . . . 1 . . 1 . . . 1 . . . . . 2 . 1 Recycler 6 | . 1 . . . . . . 2 . . . . . 3 . . . . . . Operator 5 | . . . . . . . . . . . . . . . . 5 . . . . Watcher 4 | . 1 . . . 1 . . 2 . . . . . . . . . . . . Swarmer 14 | . . . . 3 4 . . . . . . . . . . . . 6 . 1 Grunt 28 | . 3 1 . . 7 . . . . . . 2 . 6 . . . 4 . 5 Brawler 1 | . . . . . . . . . . . . . . . . . . . . 1 Duelist 1 | . . . . . . . . . . . . 1 . . . . . . . . Sentry 12 | . . . . . 5 . . 1 . . . . . 2 . 3 . . . 1 Specialist 2 | . . . . . . . 1 . 1 . . . . . . . . . . . Hunter 2 | . . . . . . . . . . . . 2 . . . . . . . . Programmer 7 | . . . . . . . . 1 . . . 1 . 2 . . . . . 3 Heavy 1 | . . . . . . . . . . . . 1 . . . . . . . . Assembled 1 | . . . . 1 . . . . . . . . . . . . . . . . Mutant 1 | . . . . . . . . . 1 . . . . . . . . . . . Best Kill Streak 7 | . 2 1 . 3 5 . 1 4 1 . . 3 . 3 . 2 . 7 . 3 Combat Bots Only 6 | . 2 1 . 3 5 . 1 1 1 . . 3 . 3 . 2 . 6 . 3 Max Kills in Single Turn 4 | . 1 1 . 3 3 . 1 2 1 . . 1 . 2 . 1 . 4 . 3 Gunslinging . | . . . . . . . . . . . . . . . . . . . . . Exploded 3 | . . . . 3 3 . . . . . . . . . . . . 3 . 3 Melee . | . . . . . . . . . . . . . . . . . . . . . Uniques/NPCs Destroyed 1 | . . . . 1 . . . . . . . . . . . . . . . . YI-UF0 (-9/Mines) Combat | -11 -10 -10 -10 -9 -8 -7 -7 -6 -6 -6 -5 -5 -4 -4 -4 -4 -4 -3 -3 -2 -------- Run | Yrd Mat Min Exi Min Mat Fac DSF Fac Low Low Fac DSF Fac Ext Cet Arc Hub Res Qua Res Hostile Shots Fired 1007 | . 42 12 . 30 78 . 62 22 8 . . 104 . 112 6 14 5 47 334 131 Missed 299 | . 9 2 . 12 31 . 18 9 2 . . 27 . 43 3 7 4 11 88 33 Hits 708 | . 33 10 . 18 47 . 44 13 6 . . 77 . 69 3 7 1 36 246 98 Melee 14 | . . . . . . . . . . . . 3 . . . . . . 6 5 Projectile 694 | . 33 10 . 18 47 . 44 13 6 . . 74 . 69 3 7 1 36 240 93 AOE 10 | . . . . 10 . . . . . . . . . . . . . . . . Critical Strikes 42 | . 1 . . . 2 . . . . . . 6 . 9 1 . . . 18 5 Part Disruptions 5 | . . . . 1 . . . . . . . . . . . . . . 1 3 Damage Taken 15975 | . 465 146 . 552 700 . 791 102 64 . . 1647 . 1566 83 181 23 834 6129 2692 Core 2226 | . 121 18 . 91 63 . 58 5 11 . . 221 . 68 . . . 23 1006 541 Absorbed by Shields 393 | . . . . . . . . . . . . 19 . . . . . 290 84 . Reduced by Siege Mode 11 | . . . . . . . . . . . . . . 4 . . . 7 . . Redirected to Shielding 24 | . . . . 15 9 . . . . . . . . . . . . . . . Regen/Repaired (Parts) 100 | . 44 . . . 56 . . . . . . . . . . . . . . . Core Remaining (%) 72 | 100 . . . 8 88 . 91 . . 98 . 77 . . . . 94 . 20 . Volleys Fired 428 | . 52 10 . 31 46 . 6 28 11 . . 36 4 72 5 28 3 45 16 35 Largest 4 | . 2 2 . 2 2 . 1 2 2 . . 2 1 2 2 2 2 4 3 4 Hottest 359 | . 80 60 . 60 130 . 25 130 80 . . 80 110 66 66 66 66 328 223 359 Shots Fired 851 | . 90 20 . 53 89 . 6 50 22 . . 72 4 143 7 57 6 126 37 69 Gun 612 | . 77 20 . 44 37 . 6 36 . . . 52 . 142 3 57 6 90 31 11 Cannon 189 | . . . . . 44 . . 14 22 . . 20 1 . . . . 33 6 49 Launcher 26 | . 2 . . 9 8 . . . . . . . . . . . . 3 . 4 Special 24 | . 11 . . . . . . . . . . . 3 1 4 . . . . 5 Kinetic 541 | . 37 10 . 22 34 . 6 36 22 . . 72 . 142 3 57 6 68 16 10 Thermal 256 | . 37 10 . 22 47 . . 14 . . . . 1 . . . . 55 20 50 Explosive 26 | . 2 . . 9 8 . . . . . . . . . . . . 3 . 4 Electromagnetic 15 | . 14 . . . . . . . . . . . . . . . . . 1 . Robot Hit Streak 20 | . 13 6 . 4 19 . 20 10 9 . . 5 . 9 4 8 8 11 1 7 Robot Miss Streak 6 | . 5 3 . 3 4 . 2 6 2 . . 4 . 6 1 3 . 6 1 4 Penetration Max 1 | . . . . . . . . . . . . 1 . 1 . 1 . 1 . 1 Secondary Targets 1 | . . . . . . . . . . . . 1 . . . . . . . . Max Gunslinging Chain 1 | . . . . . . . . . . . . 1 . . . . . . . . Shots Hit Robots 479 | . 48 11 . 16 56 . 12 35 12 . . 43 . 90 5 36 6 69 1 39 Core Hits 234 | . 21 5 . 12 34 . 3 18 6 . . 23 . 37 1 19 1 29 . 25 Critical Kills 4 | . . . . . . . . . . . . . . 3 . . . 1 . . Critical Parts Destroyed 6 | . . . . . . . 1 1 . . . 1 . 3 . . . . . . Critical Strikes 13 | . . . . . . . 1 1 1 . . 2 . 6 . . . 2 . . Meltdown 1 | . . . . . . . . . . . . . . . . . . 1 . . Destroy 9 | . . . . . . . 1 . . . . 1 . 6 . . . 1 . . Blast 2 | . . . . . . . . . 1 . . 1 . . . . . . . . Smash 1 | . . . . . . . . 1 . . . . . . . . . . . . Melee Attacks 21 | . . . . . 7 . 6 3 . . . . 5 . . . . . . . Impact 21 | . . . . . 7 . 6 3 . . . . 5 . . . . . . . Slashing . | . . . . . . . . . . . . . . . . . . . . . Piercing . | . . . . . . . . . . . . . . . . . . . . . Sneak Attacks 2 | . . . . . . . 1 1 . . . . . . . . . . . . Combat Hostiles 1 | . . . . . . . 1 . . . . . . . . . . . . . Follow-up Attacks . | . . . . . . . . . . . . . . . . . . . . . Damage Inflicted 14252 | . 622 104 . 322 1668 . 397 812 333 . . 1259 . 2367 49 911 143 2580 37 2648 Guns 7303 | . 469 104 . 154 498 . 91 456 . . . 873 . 2365 49 911 143 966 28 196 Cannons 3721 | . . . . . 812 . . 273 333 . . 386 . . . . . 642 . 1275 Explosions 2728 | . 141 . . 144 294 . . . . . . . . . . . . 972 . 1177 Melee 444 | . . . . . 55 . 306 83 . . . . . . . . . . . . Ramming 44 | . . . . 24 9 . . . . . . . . 2 . . . . 9 . Kinetic 7186 | . 184 37 . 71 483 . 91 456 333 . . 1259 . 2365 49 911 143 581 28 195 Thermal 3907 | . 222 67 . 172 827 . . 273 . . . . . . . . . 1070 . 1276 Explosive 2482 | . 27 . . 55 294 . . . . . . . . . . . . 929 . 1177 Electromagnetic 189 | . 189 . . . . . . . . . . . . . . . . . . . Impact 444 | . . . . . 55 . 306 83 . . . . . . . . . . . . Slashing . | . . . . . . . . . . . . . . . . . . . . . Piercing . | . . . . . . . . . . . . . . . . . . . . . Highest Corruption 24 | . . . . . 2 . . 1 2 2 . 1 . 9 9 9 9 . 24 11 Average Corruption 5 | . . . . . 1 . . 1 1 2 . 1 . 7 9 9 9 . 8 9 Corruption Purged . | . . . . . . . . . . . . . . . . . . . . . Corruption Blocked . | . . . . . . . . . . . . . . . . . . . . . Effects 108 | . . . . . 16 . . 2 7 . . 1 . 31 15 17 4 . 7 8 Message Errors 33 | . . . . . 9 . . . 1 . . . . 5 7 5 2 . 4 . Matter Fused 25 | . . . . . 2 . . 1 1 . . 1 . 9 3 5 1 . . 2 Heat Flow Errors 11 | . . . . . 1 . . . . . . . . 4 3 1 . . 1 1 Energy Discharges 9 | . . . . . 1 . . . 3 . . . . 2 1 2 . . . . Parts Rejected 2 | . . . . . 1 . . . . . . . . . . 1 . . . . Data Loss (minor) 14 | . . . . . 2 . . . 2 . . . . 6 . . 1 . . 3 Data Loss (major) 1 | . . . . . . . . . . . . . . . . 1 . . . . Misfires 4 | . . . . . . . . . . . . . . 2 1 1 . . . . Alerts 3 | . . . . . . . . . . . . . . 1 . 1 . . . 1 Misdirections 1 | . . . . . . . . . . . . . . . . . . . 1 . Weapon Failures 5 | . . . . . . . . 1 . . . . . 2 . . . . 1 1 Overload Shots 1 | . . . . . . . . . . . . . . . . . . 1 . . Overflow Damage 297 | . . . . 40 41 . . 53 . . . 5 . . . . . 102 . 56 Projectiles 30 | . . . . . 21 . . . . . . 5 . . . . . 4 . . Explosions 194 | . . . . 40 . . . . . . . . . . . . . 98 . 56 Melee 73 | . . . . . 20 . . 53 . . . . . . . . . . . . Knockbacks 3 | . . . . . . . 1 . . . . 2 . . . . . . . . Impact 1 | . . . . . . . 1 . . . . . . . . . . . . . Kinetic 2 | . . . . . . . . . . . . 2 . . . . . . . . Secondary . | . . . . . . . . . . . . . . . . . . . . . Self-Inflicted Damage 514 | . 27 . . 100 24 . . . . . . . . . . . . . 1 362 Shots 12 | . 2 . . 4 1 . . . . . . . . . . . . . . 5 Rammed 6 | . . . . 1 2 . . . . . . . . 1 . . . . 2 . Targets Rammed 7 | . . . . 2 2 . . . . . . . . 1 . . . . 2 . Kicked 1 | . . . . 1 . . . . . . . . . . . . . . . . Crushed . | . . . . . . . . . . . . . . . . . . . . . Highest Temperature 612 | . 207 58 . 142 342 . . 90 . . . . 32 221 260 72 2 216 110 612 Average Temperature 103 | . 74 22 . 66 113 . . 32 . . . . 16 121 106 48 2 103 79 170 Received Heat Transfer 2565 | . 264 69 . 148 270 . . . . . . 225 . 319 . 9 9 72 901 279 Effects 7 | . . . . . . . . . . . . . . . 1 . . . . 6 Shutdowns 2 | . . . . . . . . . . . . . . . . . . . . 2 Energy Bleed 1 | . . . . . . . . . . . . . . . 1 . . . . . Interference 2 | . . . . . . . . . . . . . . . . . . . . 2 Damage (minor) 1 | . . . . . . . . . . . . . . . . . . . . 1 Damage (major) 1 | . . . . . . . . . . . . . . . . . . . . 1 Siege Activations 4 | . . . . . . . . . . . . . . 2 . . . 2 . . Total Turns 70 | . . . . . . . . . . . . . . 60 . . . 10 . . Longest Duration 44 | . . . . . . . . . . . . . . 44 . . . 5 . . Martial Activations . | . . . . . . . . . . . . . . . . . . . . . Shielding Activations . | . . . . . . . . . . . . . . . . . . . . . Robots Disrupted . | . . . . . . . . . . . . . . . . . . . . . Combat Hostiles . | . . . . . . . . . . . . . . . . . . . . . Robots Corrupted 2 | . . . . . 1 . . 1 . . . . . . . . . . . . Combat Hostiles . | . . . . . . . . . . . . . . . . . . . . . Parts Fried . | . . . . . . . . . . . . . . . . . . . . . Impact Corruptions 4 | . . . . . 1 . . 3 . . . . . . . . . . . . Robots Melted 1 | . . . . . . . . . . . . . . . . . . 1 . . Combat Hostiles 1 | . . . . . . . . . . . . . . . . . . 1 . . Parts Melted 4 | . . 1 . 1 1 . . . . . . . . . . . . 1 . . Heat Transferred 3817 | . 525 150 . 300 1147 . . 370 . . . . . . . . . 844 . 481 Parts Sabotaged . | . . . . . . . . . . . . . . . . . . . . . Parts Stolen . | . . . . . . . . . . . . . . . . . . . . . Parts Stripped . | . . . . . . . . . . . . . . . . . . . . . Power Chain Reactions 2 | . 1 . . . . . . . . . . . . . . . . 1 . . Alert | -11 -10 -10 -10 -9 -8 -7 -7 -6 -6 -6 -5 -5 -4 -4 -4 -4 -4 -3 -3 -2 ------- Run | Yrd Mat Min Exi Min Mat Fac DSF Fac Low Low Fac DSF Fac Ext Cet Arc Hub Res Qua Res Maximum Alert Level 5 | . . . . . 2 1 . . . . . . . 2 1 1 . 1 5 4 Low Security (%) 77 | 100 100 100 . 100 90 . 100 100 . . 100 100 100 40 95 97 100 61 . . Level 1 11 | . . . . . 5 100 . . . . . . . 36 4 2 . 38 . . Level 2 3 | . . . . . 3 . . . . . . . . 23 . . . . . . Level 3 . | . . . . . . . . . . . . . . . . . . . . 3 Level 4 4 | . . . . . . . . . . . . . . . . . . . . 96 Level 5 . | . . . . . . . . . . . . . . . . . . . . . High Security . | . . . . . . . . . . . . . . . . . . . . . Max Security 2 | . . . . . . . . . . . . . . . . . . . 99 . Sterilizations 1 | . . . . . . . . . . . . 1 . . . . . . . . Peak Influence 1650 | . 50 35 . 98 454 201 164 86 . . . 123 69 484 214 209 84 342 1650 1270 Initial 1100 | . . . . . . 201 144 86 . . . . 64 . 169 54 39 34 120 1100 Average 176 | . 5 4 . 14 53 201 136 23 . . . 42 20 239 155 157 45 128 1600 1182 Influence Increases 4473 | . 166 45 . 131 705 5 50 146 53 . . 203 17 1050 250 277 77 687 71 540 Destroy 0b10 Robot/C 1840 | . 60 20 . 60 320 . 20 40 40 . . 160 . 480 100 80 20 220 . 220 Destroy 0b10 Robot/NC 225 | . 25 10 . 5 25 . . 45 5 . . 5 . 25 10 35 . 30 . 5 Destroy Leader 302 | . 14 . . 10 84 . . 24 . . . 30 . 52 . . 10 36 . 42 Allied During Kill 678 | . . . . . . . . . 8 . . 8 . 321 107 105 29 100 . . Successful Hack 71 | . 19 . . . 9 5 . 5 . . . . 5 7 21 . . . . . Disable Machine 315 | . 30 . . 15 15 . 15 15 . . . . . 75 . 45 . 60 15 30 Anti-Garrison Action 150 | . . . . . 150 . . . . . . . . . . . . . . . Destroy Structure 697 | . 18 . . 26 27 . . 2 . . . . 12 90 12 12 18 226 26 228 Partial Spotted 30 | . . . . . . . . 15 . . . . . . . . . 15 . . Lose Combat Pursuer 165 | . . 15 . 15 75 . 15 . . . . . . . . . . . 30 15 Influence Decreases 4993 | . 166 40 5 131 261 243 92 310 45 8 . 80 140 746 417 301 124 539 324 1021 Entered New Map 1498 | . . . 5 . . 243 62 78 . 2 . . 59 . 135 83 74 32 94 631 Time Decay 2537 | . 132 40 . 121 261 . . 232 45 6 . . 81 466 222 198 40 463 . 230 Lost Part 504 | . . . . 10 . . 30 . . . . 30 . 50 . . 10 24 190 160 Lost Ally 270 | . . . . . . . . . . . . 50 . 80 60 20 . 20 40 . Purge Threat 184 | . 34 . . . . . . . . . . . . 150 . . . . . . Squads Dispatched 39 | . . . . . 9 . 1 2 . . . 1 2 2 . . . 7 12 3 Investigation 2 | . . . . . . . . . . . . . . 1 . . . 1 . . Extermination 3 | . . . . . . . . 2 . . . . . . . . . . . 1 Reinforcement 14 | . . . . . 5 . 1 . . . . 1 . 1 . . . 6 . . Assault 19 | . . . . . 3 . . . . . . . 2 . . . . . 12 2 Garrison 1 | . . . . . 1 . . . . . . . . . . . . . . . Intercept . | . . . . . . . . . . . . . . . . . . . . . Searches Triggered . | . . . . . . . . . . . . . . . . . . . . . Construction Impeded 1 | . . . . . 1 . . . . . . . . . . . . . . . Haulers Reinforced 1 | . . . . . . . . . . . . . . . . . . 1 . . Active Scanning Responses . | . . . . . . . . . . . . . . . . . . . . . Cargo Convoy Interrupts . | . . . . . . . . . . . . . . . . . . . . . Stealth | -11 -10 -10 -10 -9 -8 -7 -7 -6 -6 -6 -5 -5 -4 -4 -4 -4 -4 -3 -3 -2 --------- Run | Yrd Mat Min Exi Min Mat Fac DSF Fac Low Low Fac DSF Fac Ext Cet Arc Hub Res Qua Res Distress Signals 15 | . . . . . 2 . . . . . . . . 4 2 . . 3 3 1 Communications Jammed . | . . . . . . . . . . . . . . . . . . . . . Distress Signals . | . . . . . . . . . . . . . . . . . . . . . Times Spotted 219 | . 7 3 . 4 30 . 5 4 3 . . 11 . 25 9 22 1 30 44 21 Peak Tracking Total 33 | . 4 2 . 1 7 . 3 1 1 . . 3 . 4 5 1 1 6 33 8 Tactical Retreats 11 | . . 1 . 2 4 . 1 . . . . . . . . . . . 2 1 Traps | -11 -10 -10 -10 -9 -8 -7 -7 -6 -6 -6 -5 -5 -4 -4 -4 -4 -4 -3 -3 -2 ------- Run | Yrd Mat Min Exi Min Mat Fac DSF Fac Low Low Fac DSF Fac Ext Cet Arc Hub Res Qua Res Traps Triggered 11 | . 1 . . . 2 . 2 . . . . . . 3 . . . 2 . 1 Indirectly . | . . . . . . . . . . . . . . . . . . . . . Trap Hack Attempts . | . . . . . . . . . . . . . . . . . . . . . Triggered . | . . . . . . . . . . . . . . . . . . . . . Disarmed . | . . . . . . . . . . . . . . . . . . . . . Reprogrammed . | . . . . . . . . . . . . . . . . . . . . . Reused . | . . . . . . . . . . . . . . . . . . . . . Traps Extracted . | . . . . . . . . . . . . . . . . . . . . . Installed . | . . . . . . . . . . . . . . . . . . . . . Triggered . | . . . . . . . . . . . . . . . . . . . . . Machines | -11 -10 -10 -10 -9 -8 -7 -7 -6 -6 -6 -5 -5 -4 -4 -4 -4 -4 -3 -3 -2 ---------- Run | Yrd Mat Min Exi Min Mat Fac DSF Fac Low Low Fac DSF Fac Ext Cet Arc Hub Res Qua Res Machines Disabled 26 | . 2 . . 1 2 . 1 1 3 . . . . 6 . 3 . 4 1 2 Max in Single Turn 2 | . 1 . . 1 1 . 1 1 2 . . . . 1 . 1 . 1 . 1 Garrison Access 3 | . . . . . 1 . . . . . . . 1 . . . . 1 . . Energy Cycler 2 | . . . . . . . . . . . . . . 2 . . . . . . Machines Repaired . | . . . . . . . . . . . . . . . . . . . . . Machines Dismantled . | . . . . . . . . . . . . . . . . . . . . . Machines Sabotaged . | . . . . . . . . . . . . . . . . . . . . . Overloaded Fab Kills . | . . . . . . . . . . . . . . . . . . . . . Hacking | -11 -10 -10 -10 -9 -8 -7 -7 -6 -6 -6 -5 -5 -4 -4 -4 -4 -4 -3 -3 -2 --------- Run | Yrd Mat Min Exi Min Mat Fac DSF Fac Low Low Fac DSF Fac Ext Cet Arc Hub Res Qua Res Machines Accessed 24 | . 4 . 1 . 3 1 . 3 . . 1 . 3 4 3 1 . . . . Terminals 19 | . 3 . . . 2 1 . 2 . . 1 . 3 4 3 . . . . . Fabricators . | . . . . . . . . . . . . . . . . . . . . . Repair Stations 2 | . 1 . . . 1 . . . . . . . . . . . . . . . Recycling Units . | . . . . . . . . . . . . . . . . . . . . . Scanalyzers 1 | . . . . . . . . 1 . . . . . . . . . . . . Garrison Access . | . . . . . . . . . . . . . . . . . . . . . Total Hacks 84 | . 13 . 1 . 14 1 . 5 . . 2 . 6 8 9 25 . . . . Successful 58 | . 10 . 1 . 8 1 . 2 . . 1 . 3 3 4 25 . . . . Failed 26 | . 3 . . . 6 . . 3 . . 1 . 3 5 5 . . . . . Catastrophic 6 | . 1 . . . 2 . . 1 . . . . . 2 . . . . . . Database Lockouts . | . . . . . . . . . . . . . . . . . . . . . Manual 18 | . 10 . 1 . 4 . . . 1 . . . . 2 . . . . . . Terminals 44 | . 9 . . . 7 1 . 2 . . 2 . 6 8 9 . . . . . Fabricators . | . . . . . . . . . . . . . . . . . . . . . Repair Stations 11 | . 4 . . . 7 . . . . . . . . . . . . . . . Recycling Units . | . . . . . . . . . . . . . . . . . . . . . Scanalyzers 3 | . . . . . . . . 3 . . . . . . . . . . . . Garrison Access . | . . . . . . . . . . . . . . . . . . . . . Terminal Hacks 44 | . 3 . 1 . 2 1 . 1 . . 1 . 3 3 4 25 . . . . Record 29 | . . . . . . . . . . . . . 1 . 3 25 . . . . Part Schematic 1 | . . . . . 1 . . . . . . . . . . . . . . . Open Door 4 | . . . . . . . . . . . . . 1 2 1 . . . . . Open DSF 4 | . . . . . . 1 . 1 . . 1 . 1 . . . . . . . Unreport Threat 3 | . 2 . . . . . . . . . . . . 1 . . . . . . Registered Prototypes 1 | . . . . . 1 . . . . . . . . . . . . . . . Zone Layout 1 | . 1 . . . . . . . . . . . . . . . . . . . Proto ID Catalog 1 | . . . 1 . . . . . . . . . . . . . . . . . Fabricator Hacks . | . . . . . . . . . . . . . . . . . . . . . Repair Station Hacks 9 | . 4 . . . 5 . . . . . . . . . . . . . . . Scan Component 5 | . 2 . . . 3 . . . . . . . . . . . . . . . Repair 4 | . 2 . . . 2 . . . . . . . . . . . . . . . Recycling Unit Hacks . | . . . . . . . . . . . . . . . . . . . . . Scanalyzer 1 | . . . . . . . . 1 . . . . . . . . . . . . Insert Component 1 | . . . . . . . . 1 . . . . . . . . . . . . Garrison Access Hacks . | . . . . . . . . . . . . . . . . . . . . . Unauthorized Hacks 4 | . 3 . . . 1 . . . . . . . . . . . . . . . Terminals 4 | . 3 . . . 1 . . . . . . . . . . . . . . . Assimilate 1 | . 1 . . . . . . . . . . . . . . . . . . . Botnet 3 | . 2 . . . 1 . . . . . . . . . . . . . . . Fabricators . | . . . . . . . . . . . . . . . . . . . . . Repair Stations . | . . . . . . . . . . . . . . . . . . . . . Recycling Units . | . . . . . . . . . . . . . . . . . . . . . Scanalyzers . | . . . . . . . . . . . . . . . . . . . . . Garrison Access . | . . . . . . . . . . . . . . . . . . . . . Data Cores Recovered . | . . . . . . . . . . . . . . . . . . . . . Used . | . . . . . . . . . . . . . . . . . . . . . Hacking Detections 15 | . 3 . . . 3 . . 3 . . . . 1 3 2 . . . . . Full Trace Events 1 | . . . . . . . . . . . . . . 1 . . . . . . Feedback Events . | . . . . . . . . . . . . . . . . . . . . . Feedback Blocked . | . . . . . . . . . . . . . . . . . . . . . Robot Schematics Acquired . | . . . . . . . . . . . . . . . . . . . . . Robots Built . | . . . . . . . . . . . . . . . . . . . . . Authchips . | . . . . . . . . . . . . . . . . . . . . . Time . | . . . . . . . . . . . . . . . . . . . . . Total Robot Build Rating . | . . . . . . . . . . . . . . . . . . . . . Part Schematics Acquired 1 | . . . . . 1 . . . . . . . . . . . . . . . Parts Built . | . . . . . . . . . . . . . . . . . . . . . Authchips . | . . . . . . . . . . . . . . . . . . . . . Time . | . . . . . . . . . . . . . . . . . . . . . Total Part Build Rating . | . . . . . . . . . . . . . . . . . . . . . Parts Repaired 4 | . 2 . . . 2 . . . . . . . . . . . . . . . Time 104 | . 52 . . . 52 . . . . . . . . . . . . . . . Parts Recycled . | . . . . . . . . . . . . . . . . . . . . . Recycled Matter . | . . . . . . . . . . . . . . . . . . . . . Retrieved Matter . | . . . . . . . . . . . . . . . . . . . . . Retrieved Components . | . . . . . . . . . . . . . . . . . . . . . Parts Scanalyzed 1 | . . . . . . . . 1 . . . . . . . . . . . . Part Schematics Acquired . | . . . . . . . . . . . . . . . . . . . . . Parts Damaged . | . . . . . . . . . . . . . . . . . . . . . Bothacking | -11 -10 -10 -10 -9 -8 -7 -7 -6 -6 -6 -5 -5 -4 -4 -4 -4 -4 -3 -3 -2 ------------ Run | Yrd Mat Min Exi Min Mat Fac DSF Fac Low Low Fac DSF Fac Ext Cet Arc Hub Res Qua Res Used RIF Installer . | . . . . . . . . . . . . . . . . . . . . . Robots Hacked . | . . . . . . . . . . . . . . . . . . . . . Non-combat . | . . . . . . . . . . . . . . . . . . . . . Combat . | . . . . . . . . . . . . . . . . . . . . . Robot Hacks Applied . | . . . . . . . . . . . . . . . . . . . . . Relay Couplers Released 9 | . . . . . 4 . . . . . . . 3 . . . . 2 . . Machine Destruction 9 | . . . . . 4 . . . . . . . 3 . . . . 2 . . Fabnet Peak Effective % . | . . . . . . . . . . . . . . . . . . . . . Robots Rewired 12 | . . . . . . . . . 3 . . . . 9 . . . . . . Allies Hacked 2 | . . . . . . . . . . . . . . 2 . . . . . . Hacks Repelled . | . . . . . . . . . . . . . . . . . . . . . Allies | -11 -10 -10 -10 -9 -8 -7 -7 -6 -6 -6 -5 -5 -4 -4 -4 -4 -4 -3 -3 -2 -------- Run | Yrd Mat Min Exi Min Mat Fac DSF Fac Low Low Fac DSF Fac Ext Cet Arc Hub Res Qua Res Total Allies 19 | . . . . . . . . . 3 . . . . 13 3 . . . . . Largest Group 9 | . . . . . . . . . 3 3 3 3 . 9 8 7 5 5 2 . Highest-Rated Group 512 | . . . . . . . . . 90 90 90 90 . 441 512 461 386 386 184 . Highest-Rated Ally 116 | . . . . . . . . . 30 30 30 30 . 116 116 116 116 116 116 . Initial Warlord ECA Mod 68 | . . . . . . . . . . . . . 9 9 9 9 9 8 8 7 Total Orders 3 | . . . . . . . . . . . . 1 . . 2 . . . . . STAY 1 | . . . . . . . . . . . . . . . 1 . . . . . ROAM 1 | . . . . . . . . . . . . 1 . . . . . . . . FOLLOW 1 | . . . . . . . . . . . . . . . 1 . . . . . Ally Attacks 216 | . . . . . . . . . 4 . . 16 . 111 34 25 4 19 3 . Total Damage 7130 | . . . . . . . . . 82 . . 323 . 2864 1643 915 110 1052 141 . Kills 36 | . . . . . . . . . 1 . . 1 . 17 7 4 1 5 . . Allies Corrupted 1 | . . . . . . . . . . . . . . 1 . . . . . . Allies Melted . | . . . . . . . . . . . . . . . . . . . . . Field Lobotomies 4 | . . . . . . . . . . . . . . 1 3 . . . . . Intel | -11 -10 -10 -10 -9 -8 -7 -7 -6 -6 -6 -5 -5 -4 -4 -4 -4 -4 -3 -3 -2 ------- Run | Yrd Mat Min Exi Min Mat Fac DSF Fac Low Low Fac DSF Fac Ext Cet Arc Hub Res Qua Res Active Infowar (turns) 7670 | . 544 331 367 504 1501 7 116 460 600 47 39 586 296 1130 479 322 . 341 . . Sensors 3250 | . . 190 364 435 74 . . . . . . . . 1045 479 322 . 341 . . Terrain 4422 | . 544 141 3 69 1429 7 116 460 600 47 39 586 296 85 . . . . . . Robot Analysis Total . | . . . . . . . . . . . . . . . . . . . . . Derelict Logs Recovered 2 | . . 1 . 1 . . . . . . . . . . . . . . . . Drone Launches . | . . . . . . . . . . . . . . . . . . . . . Drone Recoveries . | . . . . . . . . . . . . . . . . . . . . . Exploration | -11 -10 -10 -10 -9 -8 -7 -7 -6 -6 -6 -5 -5 -4 -4 -4 -4 -4 -3 -3 -2 ------------- Run | Yrd Mat Min Exi Min Mat Fac DSF Fac Low Low Fac DSF Fac Ext Cet Arc Hub Res Qua Res Turns Passed 11041 | 5 920 331 367 935 1631 7 116 737 600 47 39 586 296 1336 479 405 84 1396 238 486 Spaces Moved 5508 | 5 528 171 298 602 506 4 35 450 412 20 32 209 161 535 261 171 35 713 109 251 Core 68 | . 1 . . . . . . . . . . . . . . . . . 3 64 Treads 2608 | . . . . . 457 4 7 . . . . 131 161 535 261 171 35 713 106 27 Legs 1817 | 5 527 171 298 484 . . 28 85 . . . 59 . . . . . . . 160 Wheels 1015 | . . . . 118 49 . . 365 412 20 32 19 . . . . . . . . Hover . | . . . . . . . . . . . . . . . . . . . . . Flight . | . . . . . . . . . . . . . . . . . . . . . Fastest Speed 50 | 120 120 120 120 90 90 160 130 95 110 110 110 110 160 160 160 160 160 160 50 50 Average Speed 138 | 120 120 120 120 122 153 160 183 115 110 110 110 148 160 160 160 160 160 160 157 132 Slowest Speed 320 | 120 300 120 120 190 160 160 240 200 110 110 110 193 160 160 160 160 160 160 170 320 Overloaded Moves . | . . . . . . . . . . . . . . . . . . . . . Propulsion Burnouts . | . . . . . . . . . . . . . . . . . . . . . Robots Hopped . | . . . . . . . . . . . . . . . . . . . . . Potential Cave-ins 8 | . . . . . . . . . . . . . . . . . . . 8 . Cave-ins Triggered 2 | . . . . . . . . . . . . . . . . . . . 2 . Exploration Rate (%) 37 | 2 43 31 62 80 38 . 43 9 47 6 2 94 5 63 82 78 9 25 25 8 Regions Visited 20 Branch Regions 10 Pre-discovered Areas 2 | . . . . 2 . . . . . . . . . . . . . . . . Known Exits Taken 2 | . . . . . . 1 . . . . 1 . . . . . . . . . Unknown Exits Taken 16 | 1 1 1 1 1 1 . . 1 1 1 . . 1 1 1 1 1 1 1 . Scrap Searched 7 | . . . . 1 . . . . 5 1 . . . . . . . . . . Spaces Dug 36 | . . . . . 5 . . . . . . . 6 . . . . 5 20 . Terrain Destroyed 355 | . 17 . . 36 31 . . 2 1 . . 3 6 30 . 11 1 82 24 111 Melee 10 | . . . . . 5 . . . . . . . 5 . . . . . . . Projectile 112 | . . . . . 13 . . 2 1 . . 3 1 14 . 11 1 23 24 19 AOE 231 | . 17 . . 36 13 . . . . . . . . 15 . . . 58 . 92 Terrain Rammed . | . . . . . . . . . . . . . . . . . . . . . Walls Destroyed . | . . . . . . . . . . . . . . . . . . . . . Machines Disabled . | . . . . . . . . . . . . . . . . . . . . . Actions | -11 -10 -10 -10 -9 -8 -7 -7 -6 -6 -6 -5 -5 -4 -4 -4 -4 -4 -3 -3 -2 --------- Run | Yrd Mat Min Exi Min Mat Fac DSF Fac Low Low Fac DSF Fac Ext Cet Arc Hub Res Qua Res Total 8079 | 4 725 278 307 747 1263 5 70 614 545 45 35 417 184 870 315 248 57 871 142 337 Wait 1568 | . 100 95 . 96 627 1 9 107 78 26 4 116 6 126 27 45 20 66 1 18 Move 5488 | 4 527 170 297 601 505 3 34 449 411 19 31 208 160 534 260 170 34 712 108 251 Hop . | . . . . . . . . . . . . . . . . . . . . . Pick Up 135 | . 18 2 2 3 27 . 3 7 6 . . 16 1 13 7 4 . 14 . 12 Fast Attach 20 | . . . . . . . . 5 4 . . . 1 1 . . . 5 2 2 Attach 88 | . 11 . . 3 11 1 2 3 3 . . 8 2 7 5 . . 10 5 17 Detach 14 | . . . . 1 1 . . . 3 . . . 2 . 1 . . 2 2 2 Swap 82 | . 7 1 4 8 22 . 2 7 . . . 8 2 10 3 . . 7 1 . Drop 99 | . 10 . 4 2 15 . 1 5 11 . . 18 1 9 7 1 . 10 5 . Fire 428 | . 52 10 . 31 46 . 6 28 11 . . 36 4 72 5 28 3 45 16 35 Melee 21 | . . . . . 7 . 6 3 . . . . 5 . . . . . . . Ram 2 | . . . . 1 . . . . . . . . . . . . . . 1 . Kick 1 | . . . . 1 . . . . . . . . . . . . . . . . Crush 4 | . . . . . 2 . . . . . . . . 1 . . . . 1 . Escape Stasis 14 | . . . . . . . 7 . . . . 7 . . . . . . . . Rewire 115 | . . . . . . . . . 18 . . . . 97 . . . . . . Trap . | . . . . . . . . . . . . . . . . . . . . . Miscellaneous . | . . . . . . . . . . . . . . . . . . . . . Route ------- -11/Scrapyard -10/Materials (discovered 2 exits: [*Mat] / [*Min]) -10/Mines (discovered 3 exits: [*Mat] / *Exi / [*Sub]) -10/Exiles -9/Mines -8/Materials -7/Factory -7/DSF -6/Factory -6/Lower Caves -6/Lower Caves -5/Factory -5/DSF -4/Factory -4/Extension (discovered 3 exits: [*Res x2] / *Cet) -4/Cetus (discovered 2 exits: [*Res] / *Arc) -4/Archives (discovered 3 exits: [*Res] / [*Hub x2]) -4/Hub_04(d) -3/Research -3/Quarantine -2/Research History --------- Turn | Location | Event 1 | -11/Scrapyard | Discovered new exit (range 2) 6 | -11/Scrapyard | Entered Materials 314 | -10/Materials | Build established: Mutant 763 | -10/Materials | Discovered new exit (range 9) 820 | -10/Materials | Discovered new exit (range 9) 884 | -10/Materials | Repaired Lgt. Assault Rifle 911 | -10/Materials | Repaired Sml. Laser 926 | -10/Materials | Entered Mines 940 | -10/Mines | Discovered new exit (range 5) 982 | -10/Mines | Discovered new exit (range 8) 1116 | -10/Mines | Assembled infested the area 1196 | -10/Mines | Met 8R-AWN 1208 | -10/Mines | Core integrity fell below 50% 1221 | -10/Mines | Build established: Scavenger-Mutant 1246 | -10/Mines | Learned Materials interactive machine intel 1252 | -10/Mines | Discovered new exit (range 5) 1257 | -10/Mines | Entered Exiles 1287 | -10/Exiles | Welcomed by 8R-AWN 1308 | -10/Exiles | Met EX-HEX 1345 | -10/Exiles | Met EX-BIN 1370 | -10/Exiles | Aligned with FarCom system 1371 | -10/Exiles | Given EX-Vault access code 1417 | -10/Exiles | Opened EX-Vault 1425 | -10/Exiles | Found Field Lobotomy Kit 1451 | -10/Exiles | Warned to stay clear of 0b10 Research branches 1485 | -10/Exiles | Met EX-DEC 1604 | -10/Exiles | Discovered new exit (range 10) 1624 | -10/Exiles | Left Exiles lab with Field Lobotomy Kit 1624 | -10/Exiles | Entered Mines 1625 | -9/Mines | Learned location of Storage (-9) 1690 | -9/Mines | Found a damaged Exp. Sensor Array with a note attached 1692 | -9/Mines | Found Prototype Device 1693 | -9/Mines | Identified Exp. Sensor Array 1711 | -9/Mines | Learned location of Zion (-6) 1739 | -9/Mines | Discovered new exit (range 14) 1923 | -9/Mines | Build established: Skirmisher 1976 | -9/Mines | Found a hidden stash of uninstalled traps 2230 | -9/Mines | Destroyed YI-UF0 2301 | -9/Mines | Excavation squad dispatched 2301 | -9/Mines | A large section of the Mines collapsed 2302 | -9/Mines | Core integrity fell below 20% 2510 | -9/Mines | Build established: Mutant 2559 | -9/Mines | Entered Materials 2559 | -8/Materials | Evolved 4 slots: Propulsion x1, Utility x3 2560 | -8/Materials | Loaded intel: 17 interactive machine locations 2889 | -8/Materials | Repaired Lgt. Treads 2917 | -8/Materials | Repaired Core Shielding 2945 | -8/Materials | Build established: Scavenger-Skirmisher 4159 | -8/Materials | First assault squad dispatched 4185 | -8/Materials | Discovered new exit (range 4) 4190 | -8/Materials | Entered Factory 4190 | -7/Factory | Evolved 2 slots: Power x1, Utility x1 4197 | -7/Factory | Identified exit to DSF 4197 | -7/Factory | Entered DSF 4255 | -7/DSF | Lost 3 parts (1p2n) 4275 | -7/DSF | Discovered new exit (range 16) 4289 | -7/DSF | Additional patrols routed to DSF 4313 | -7/DSF | Entered Factory 4313 | -6/Factory | Evolved 2 slots: Utility x2 5024 | -6/Factory | Discovered new exit (range 10) 5050 | -6/Factory | Entered Lower Caves 5313 | -6/Lower Caves | Acquired the password to a Derelict Tinkerer's latest research 5324 | -6/Lower Caves | Found Prototype Special Weapon 5330 | -6/Lower Caves | Identified Molecular Deconstructor 5354 | -6/Lower Caves | Build established: Scavenger-Mutant 5449 | -6/Lower Caves | Attacked by a delusional Derelict stockpiling Unaware 5516 | -6/Lower Caves | Discovered new exit (range 13) 5530 | -6/Lower Caves | Caught by Unaware searching for contraband prototypes 5582 | -6/Lower Caves | Found DCF Scrap (13 items) 5650 | -6/Lower Caves | Entered another Lower Caves area 5650 | -6/Lower Caves | Accompanied by 3 allies 5656 | -6/Lower Caves | Discovered new exit (range 7) 5697 | -6/Lower Caves | Entered Factory 5697 | -5/Factory | Accompanied by 3 allies 5697 | -5/Factory | Evolved 2 slots: Propulsion x1, Utility x1 5732 | -5/Factory | Identified exit to DSF 5736 | -5/Factory | Entered DSF 5736 | -5/DSF | Accompanied by 3 allies 5826 | -5/DSF | Additional patrols routed to DSF 5914 | -5/DSF | Lost 3 parts (2n1u) 6136 | -5/DSF | Build established: Skirmisher 6249 | -5/DSF | Discovered new exit (range 15) 6305 | -5/DSF | Sterilization system engaged 6322 | -5/DSF | Entered Factory 6322 | -4/Factory | Evolved 2 slots: Propulsion x2 6582 | -4/Factory | Discovered new exit (range 16) 6618 | -4/Factory | Entered Extension 6666 | -4/Extension | Disrupted transfer network 6908 | -4/Extension | Rescued a captive Derelict 6909 | -4/Extension | Rescued a captive Derelict 7100 | -4/Extension | Rescued a captive Derelict 7153 | -4/Extension | Energy Cycler disabled 7153 | -4/Extension | Rescued a captive Derelict 7153 | -4/Extension | Rescued a captive Derelict 7155 | -4/Extension | Rescued a captive Derelict 7157 | -4/Extension | Rescued a captive Derelict 7218 | -4/Extension | Lost 3 allies 7222 | -4/Extension | Build established: Scavenger-Skirmisher 7505 | -4/Extension | Spotted B-86 Titan 7510 | -4/Extension | Assimilated B-86 Titan with FLK Orb 7524 | -4/Extension | Discovered new exit (range 15) 7536 | -4/Extension | Extracted ID and sensor layout for unrecognized location from A7's data core 7667 | -4/Extension | Build established: Commander-Skirmisher 7795 | -4/Extension | Discovered new exit (range 16) 7796 | -4/Extension | Discovered new exit (range 15) 7954 | -4/Extension | Entered Cetus 7954 | -4/Cetus | Accompanied by 7 allies 7975 | -4/Cetus | Spotted Cetus Guard 7975 | -4/Cetus | Spotted Cetus Guard 7976 | -4/Cetus | Spotted Cetus Guard 7976 | -4/Cetus | Spotted Cetus Guard 7977 | -4/Cetus | Assimilated Cetus Guard with FLK Orb 7980 | -4/Cetus | Assimilated Cetus Guard with FLK Orb 7991 | -4/Cetus | Allies destroyed Cetus Guard 8228 | -4/Cetus | Discovered new exit (range 15) 8269 | -4/Cetus | Spotted Cetus Guard 8269 | -4/Cetus | Spotted Cetus Guard 8269 | -4/Cetus | Spotted Cetus Guard 8278 | -4/Cetus | Assimilated Cetus Guard with FLK Orb 8282 | -4/Cetus | Allies destroyed Cetus Guard 8282 | -4/Cetus | Allies destroyed Cetus Guard 8293 | -4/Cetus | Discovered new exit (range 15) 8307 | -4/Cetus | Met Revision 17 8433 | -4/Cetus | Entered Archives 8433 | -4/Archives | Accompanied by 7 allies 8493 | -4/Archives | Unable to access archive contents 8516 | -4/Archives | Unable to access archive contents 8522 | -4/Archives | Discovered new exit (range 16) 8532 | -4/Archives | Unable to access archive contents 8535 | -4/Archives | Discovered new exit (range 16) 8548 | -4/Archives | Unable to access archive contents 8551 | -4/Archives | Discovered new exit (range 15) 8734 | -4/Archives | Build established: Scavenger-Skirmisher 8838 | -4/Archives | Entered Hub_04(d) 8838 | -4/Hub_04(d) | Accompanied by 5 allies 8874 | -4/Hub_04(d) | Discovered new exit (range 11) 8922 | -4/Hub_04(d) | Entered Research 8922 | -3/Research | Accompanied by 5 allies 8922 | -3/Research | Evolved 2 slots: Weapon x2 9007 | -3/Research | Allies destroyed Cetus Guard 9007 | -3/Research | Allies destroyed Cetus Guard 9041 | -3/Research | Lost 3 allies 9122 | -3/Research | Revision forces began assault on 0b10 9200 | -3/Research | Met up with Revision 17++ 9305 | -3/Research | Build established: Scavenger-Tank 9308 | -3/Research | Spotted B-86 Titan 9347 | -3/Research | Lost 3 parts (2u1w) 9546 | -3/Research | Found Fusion Bomb Launcher 9622 | -3/Research | Research terminal network offline 9826 | -3/Research | Found Fusion Bomb Launcher 10269 | -3/Research | Discovered new exit (range 13) 10318 | -3/Research | Entered Quarantine 10318 | -3/Quarantine | Accompanied by 2 allies 10319 | -3/Quarantine | Maximum security lockdown engaged 10372 | -3/Quarantine | Found Alien Artifact 10372 | -3/Quarantine | Identified Core Reset Matrix 10372 | -3/Quarantine | Used Core Reset Matrix 10376 | -3/Quarantine | Detected hypermatrix surge 10376 | -3/Quarantine | Sensed 11 artifacts in vicinity 10406 | -3/Quarantine | Crushed by falling debris 10515 | -3/Quarantine | Crushed by falling debris 10515 | -3/Quarantine | System corruption reached 10% 10529 | -3/Quarantine | Discovered new exit (range 13) 10551 | -3/Quarantine | Spotted Investigator 10552 | -3/Quarantine | Core integrity fell below 50% 10556 | -3/Quarantine | Entered Research 10556 | -2/Research | Evolved 2 slots: Utility x2 10586 | -2/Research | Lost 19 parts (3p5n8u3w) 10806 | -2/Research | First assault squad dispatched 10874 | -2/Research | System corruption reached 10% 10901 | -2/Research | Lost 5 parts (2p2u1w) 11042 | -2/Research | Self-destructed Last Messages --------------- 11034_ System corrupted: Matter fused (-5). 11035_ Destroyed Unknown Wheel. 11035_ Slug penetrates G-73 Enforcer. 11035_ Slug penetrates M-36 Artificer. 11036_ Mic. Antimatter Reactor destroyed. 11036_ Quantum Rifle destroyed. 11037_ K-01 Serf collects debris. 11038_ G-73 Enforcer destroyed. 11038_ Med. Treads destroyed. 11038_ Destroyed Med. Treads. 11038_ Sml. Battery destroyed. 11038_ Destroyed Sml. Battery. 11038_ Fusion Bomb Launcher destroyed. 11038_ Destroyed Fusion Bomb Launcher. 11039_ Enh. Nova Cannon destroyed. 11039_ Slug penetrates Wall. 11039_ Railgun destroyed. 11040_ The unstable cave ceiling collapses. 11041_ K-01 Serf collects debris. 11041_ Slug penetrates Wall. Map ----- +----------------------------------------------------+ | ?????????????????????????????????????????????????? | | ?????????????????????????????????????????????????? | | ?????????????????????????????????????????????????? | | ?????????????????????????????????????????????????? | | ?????????????????????????????????????????????????? | | ?????????????????????????????????????????????????? | | ??????????????????????????????? ????????????????? | | ??????????????????????????????? "??????????????? | | ??????????????????????? """"" "??????????????? | | ????????????????????? """"" """"" ?????????? | | ??????????????????? ???????? | | ???????????????????? ????????? | | ????????????????????? h ????????? | | ?????????????????????# """???????? | | ?????????????????????# h """???????? | | ?????????????????????# ]] "????????? | | ?????????????????????# ]] F"????????? | | ???????????????????b?? ]] ??????????? | | ???????????????""??????? ????????????? | | ???????????????"""?????g?? h ??????????????? | | ???????????????""" ????????? ????????????????? | | ????????????????? ?#########h#####+####????????? | | ??????????????????? # # #????????? | | ??????????#?????????# %m #????????? | | ??????????#"######?## """ #????????? | | ??????????# ###; @ %% T #????????? | | ??????????# l =; k! %%%% "" #????????? | | ??????????# %;;;# * #????????? | | ??????????# ! "## [% # #????????? | | ??????? # ##### # #????????? | | ??????" / w ^ #??? gi #????????? | | ?????"" ####+###??####### # ##########????????? | | ????? #?? ?????# #?????????????????? | | ????? #? ?????# #?????????????????? | | ????? ## "?????# """ #?????????????????? | | # ?""" ## ""?????# "T" #?????????????????? | | # """ ## "" ????# " " #?????????????????? | | # """ ## ?????# ! !#?????????????????? | | # """ # ???????# #?????????????????? | | # """ # ???????# #?????????????????? | | # ###?#+##+######+#############?????????? | | # #???# ????????? | | # #???# ^ ????????? | | ###### ##### ????????? | | # ^ ????????? | | # ########/##### ########### ????????? | | """ # #????? ??# #??????????????????????? | | """ # #??? # #??????????????????????? | | """ / #??# """" # #??????????????????????? | | """ # #??# ""S"" # #??????????????????????? | +----------------------------------------------------+ Best States ------------- Heat Dissipation 95 Coolant Potential 80 Energy Generation 45 Energy Capacity 950 Matter Stores 450 Matter Capacity 450 Sight Range 16 Robot Scan Range 20 Terrain Scan Range 16 Terrain Scan Density 610 Additional Mass Support 9 Armor Coverage 900 Resistance: TH 25 Core Shielding 20 Weapon Shielding 66 Point Defense Rating 480 Phase Shifting 10 Evasion (%) 55 Core Analysis 6 Recoil Reduction 6 Item Schematics ----------------- None Robot Schematics ------------------ None Fabricated ------------ Nothing Repaired ---------- Lgt. Assault Rifle | 63% | -10/Materials Sml. Laser | 78% | -10/Materials Lgt. Treads | 70% | -8/Materials Core Shielding | 70% | -8/Materials Alien Tech Used ----------------- Core Reset Matrix Achievements -------------- Explorer Revolutionary Research Challenges ------------ None Game ------ Seed ChromaticFactoryRouter Manual? 0 Play Time 01:45:20 Cumulative 121.6 hours Start 2025.08.12 @ 02:17:33 End 2025.08.12 @ 06:18:35 Sessions 1 Manual Loads 0 Difficulty Rogue Special Mode None Game No. 147 Rogue 132 Adventurer 15 Explorer 0 Win Type - Total 4 Types 3/0/1/0/0/0/0/0/0/0 Lore% 39 Gallery% 61 Achievement% 57 Wizard Run 0 Options --------- Layout 0 ASCII 0 Keyboard 0 Movement Mouse Keybinds 0 Fullscreen 2 Font 36/Smallcaps Map View 76x50 Zoom Use 0% Tactical HUD 1 Map Filters NONE Filters NONE Steam 1 RUN: 5ca682b6-8f5e-436f-b214-825322613df1